Cogmind - Beta 13 @@@ ROGUE MODE // 2024.04.16 @ 22:06:53 Player: SVIT13 Result: Self-destructed Performance ------------- Evolutions (1) 500 Regions Visited (3) 600 Robots Destroyed (28) 140 Value Destroyed (826) 826 Prototype IDs (1) 20 Alien Tech Used (0) 0 Bonus (0) 0 TOTAL SCORE: 2086 Bonus ------- None Cogmind --------- Core Integrity 283/400 Matter 300/300 Energy 100/100 System Corruption 0% Temperature Cool (0) Movement Walking (190) Ox1 Location -9/Storage Parts ------- > --- POWER (1) -------- (None) > --- PROPULSION (3) --- Aluminum Leg > --- UTILITY (3) ------ Medium Storage Unit > --- WEAPON (2) ------- Hammer Mace > --- INVENTORY (10) --- Light Nuclear Core Improved Flight Unit Authchip [R/Combat] Authchip [R/Combat] Authchip [Weapon] Drone Bay (0/2) Beam Cannon Beam Cannon Peak State ------------ > --- POWER ------------ Light Ion Engine > --- PROPULSION ------- VTOL Module VTOL Module Improved Flight Unit > --- UTILITY ---------- Medium Storage Unit Drone Bay Drone Bay > --- WEAPON ----------- Hammer Mace > --- INVENTORY -------- Ion Engine Light Nuclear Core Aluminum Leg Aluminum Leg Aluminum Leg VTOL Module Beam Cannon Beam Cannon Grenade Launcher [Rating: 23] Favorites ----------- Power Light Nuclear Core Engine Light Ion Engine Power Core Light Nuclear Core Propulsion Aluminum Leg Leg Aluminum Leg Wheel Wheel Flight Unit VTOL Module Utility Medium Storage Unit Device Drone Bay Storage Medium Storage Unit Protection Light Armor Plating Weapon Hammer Energy Gun EM Pulse Gun Energy Cannon Beam Cannon Ballistic Gun Assault Rifle Launcher EMP Blaster Impact Weapon Hammer Build | -11 -10 -9 -9 ------- Run | Yrd Mat Mat Sto Slots Evolved 2 | . . 2 . Power . | . . . . Propulsion 1 | . . 1 . Utility 1 | . . 1 . Weapon . | . . . . Parts Attached 45 | 8 12 3 22 Power 3 | 1 1 . 1 Engine 2 | 1 . . 1 Core 1 | . 1 . . Reactor . | . . . . Propulsion 17 | 4 4 1 8 Treads . | . . . . Leg 9 | 2 2 1 4 Wheel 4 | 2 2 . . Hover . | . . . . Flight 4 | . . . 4 Utility 6 | 1 2 . 3 Device 3 | . 1 . 2 Storage 2 | 1 1 . . Processor . | . . . . Hackware . | . . . . Protection 1 | . . . 1 Artifact . | . . . . Weapon 19 | 2 5 2 10 Energy Gun 2 | 1 1 . . Energy Cannon 6 | . 2 . 4 Ballistic Gun 1 | 1 . . . Ballistic Cannon . | . . . . Launcher 3 | . 1 . 2 Special Weapon . | . . . . Impact Weapon 7 | . 1 2 4 Slashing Weapon . | . . . . Piercing Weapon . | . . . . Special Melee Weapon . | . . . . Unidentified Prototypes 1 | . . . 1 Parts Lost 8 | . 2 . 6 Power 1 | . . . 1 Propulsion 3 | . 1 . 2 Utility 3 | . . . 3 Weapon 1 | . 1 . . Highest Loss Streak 5 | . 1 . 5 To Critical Strikes . | . . . . Average Slot Usage (%) 90 | . 88 88 92 Engine 5 | . 1 . 9 Core 6 | . 12 11 . Leg 17 | . 6 22 23 Wheel 7 | . 18 11 . Flight 4 | . . . 8 Device 10 | . 4 11 14 Storage 14 | . 20 11 11 Energy Gun 4 | . 11 . . Energy Cannon 3 | . 2 7 3 Launcher 1 | . 1 . 1 Impact Weapon 12 | . 6 14 16 Naked Turns . | . . . . Heaviest Build 33 | 14 24 23 33 Greatest Support 30 | 20 20 10 30 Greatest Overweight (x) 2 | . 2 2 2 Average Overweight (x) . | . . 2 . Largest Inventory Capacity 10 | 8 10 10 10 Average Capacity 9 | 7 9 10 10 Most Carried 10 | 3 10 9 10 Average Carried 6 | 1 6 7 8 Final Capacity 10 | 8 10 10 10 Final Carried 9 | 3 8 9 8 Class Distribution -------------------- 100% | Mutant Dominant Class ---------------- Mutant | -10/Materials Mutant | -9/Materials Mutant | -9/Storage Resources | -11 -10 -9 -9 ----------- Run | Yrd Mat Mat Sto Matter Collected 702 | 232 167 80 223 Remotely . | . . . . Salvage Created 1045 | 37 243 34 731 Parts 41 | 4 14 1 22 Haulers Intercepted 2 | . . . 2 Recyclers Shooed 3 | 1 . . 2 Parts Field Recycled . | . . . . Retrieved Matter . | . . . . Parts Self-Destructed . | . . . . Prevented . | . . . . Kills | -11 -10 -9 -9 ------- Run | Yrd Mat Mat Sto Combat Hostiles Destroyed 21 | . 7 1 13 Melee 7 | . . 1 6 Guns 4 | . 4 . . Cannons 2 | . . . 2 Classes Destroyed 8 | 1 2 . 5 Builder 1 | . . . 1 Tunneler 2 | 2 . . . Hauler 2 | . . . 2 Recycler 1 | . . . 1 Watcher 1 | . . . 1 Swarmer 3 | . 3 . . Grunt 14 | . 4 1 9 Sentry 4 | . . . 4 Best Kill Streak 4 | 1 3 1 4 Combat Bots Only 3 | . 3 1 3 Max Kills in Single Turn 1 | 1 1 1 1 Gunslinging . | . . . . Exploded . | . . . . Melee 1 | . . 1 1 Uniques/NPCs Destroyed . | . . . . Combat | -11 -10 -9 -9 -------- Run | Yrd Mat Mat Sto Hostile Shots Fired 130 | . 37 8 85 Missed 31 | . 9 1 21 Damage Taken 1314 | . 337 72 905 Core 179 | . 62 . 117 Absorbed by Shields . | . . . . Regen/Repaired (Parts) 12 | . 12 . . Core Remaining (%) 87 | 100 75 . . Volleys Fired 35 | 12 13 3 7 Largest 2 | 2 2 2 2 Hottest 120 | 60 60 120 120 Shots Fired 63 | 24 19 6 14 Gun 43 | 24 19 . . Cannon 18 | . . 6 12 Launcher 2 | . . . 2 Special . | . . . . Kinetic 18 | 12 6 . . Thermal 18 | . . 6 12 Explosive . | . . . . Electromagnetic 27 | 12 13 . 2 Robot Hit Streak 6 | 4 6 1 4 Robot Miss Streak 4 | 3 4 2 2 Penetration Max . | . . . . Secondary Targets . | . . . . Shots Hit Robots 94 | 10 22 7 55 Core Hits 20 | 3 7 1 9 Critical Kills 2 | . . . 2 Critical Parts Destroyed 14 | 1 3 1 9 Critical Strikes 16 | 1 3 1 11 Destroy 1 | 1 . . . Smash 15 | . 3 1 11 Melee Attacks 94 | . 16 5 73 Impact 94 | . 16 5 73 Slashing . | . . . . Piercing . | . . . . Sneak Attacks 6 | . . . 6 Combat Hostiles 1 | . . . 1 Follow-up Attacks 11 | . . 2 9 Damage Inflicted 2469 | 132 412 155 1770 Guns 281 | 132 149 . . Cannons 141 | . . 35 106 Explosions 54 | . . . 54 Melee 1993 | . 263 120 1610 Ramming . | . . . . Kinetic 85 | 26 59 . . Thermal 141 | . . 35 106 Explosive . | . . . . Electromagnetic 250 | 106 90 . 54 Impact 1993 | . 263 120 1610 Slashing . | . . . . Piercing . | . . . . Highest Corruption . | . . . . Average Corruption . | . . . . Corruption Purged . | . . . . Corruption Blocked . | . . . . Overload Shots . | . . . . Overflow Damage 628 | . 92 22 514 Projectiles . | . . . . Explosions . | . . . . Melee 628 | . 92 22 514 Knockbacks 7 | . 2 . 5 Impact 7 | . 2 . 5 Kinetic . | . . . . Secondary . | . . . . Self-Inflicted Damage . | . . . . Shots . | . . . . Rammed . | . . . . Targets Rammed . | . . . . Kicked . | . . . . Crushed . | . . . . Highest Temperature 414 | . 31 177 414 Average Temperature 103 | . 15 95 166 Received Heat Transfer 756 | . 171 42 543 Effects 1 | . . . 1 Energy Bleed 1 | . . . 1 Siege Activations . | . . . . Robots Corrupted 1 | . 1 . . Combat Hostiles 1 | . 1 . . Parts Fried 17 | . 2 . 15 Impact Corruptions 26 | . 4 1 21 Robots Melted . | . . . . Combat Hostiles . | . . . . Parts Melted 1 | . . . 1 Heat Transferred 296 | . . 74 222 Parts Sabotaged . | . . . . Parts Stolen . | . . . . Parts Stripped . | . . . . Power Chain Reactions . | . . . . Alert | -11 -10 -9 -9 ------- Run | Yrd Mat Mat Sto Peak Influence 282 | 10 219 67 282 Initial 27 | . 6 7 27 Average 98 | 3 97 23 134 Maximum Alert Level 1 | . 1 . 1 Low Security (%) 84 | 100 86 100 76 Level 1 15 | . 13 . 23 Level 2 . | . . . . Level 3 . | . . . . Level 4 . | . . . . Level 5 . | . . . . High Security . | . . . . Max Security . | . . . . Squads Dispatched 4 | . 1 1 2 Investigation 2 | . . . 2 Extermination . | . . . . Reinforcement 2 | . 1 1 . Assault . | . . . . Garrison . | . . . . Intercept . | . . . . Searches Triggered . | . . . . Construction Impeded . | . . . . Haulers Reinforced . | . . . . Active Scanning Responses . | . . . . Cargo Convoy Interrupts . | . . . . Stealth | -11 -10 -9 -9 --------- Run | Yrd Mat Mat Sto Distress Signals 2 | . . 2 . Communications Jammed . | . . . . Distress Signals . | . . . . Times Spotted 38 | . 10 8 20 Peak Tracking Total 6 | . 3 5 6 Tactical Retreats 5 | . 2 2 1 Traps | -11 -10 -9 -9 ------- Run | Yrd Mat Mat Sto Traps Triggered 3 | . 1 . 2 Indirectly . | . . . . Trap Hack Attempts . | . . . . Triggered . | . . . . Disarmed . | . . . . Reprogrammed . | . . . . Reused . | . . . . Traps Extracted . | . . . . Installed . | . . . . Triggered . | . . . . Machines | -11 -10 -9 -9 ---------- Run | Yrd Mat Mat Sto Machines Disabled 3 | . 1 . 2 Max in Single Turn 1 | . 1 . 1 Machines Repaired . | . . . . Machines Dismantled . | . . . . Machines Sabotaged . | . . . . Overloaded Fab Kills . | . . . . Hacking | -11 -10 -9 -9 --------- Run | Yrd Mat Mat Sto Machines Accessed 10 | . 5 1 4 Terminals 7 | . 4 . 3 Fabricators . | . . . . Repair Stations 1 | . 1 . . Recycling Units 2 | . . 1 1 Scanalyzers . | . . . . Garrison Access . | . . . . Total Hacks 19 | . 12 1 6 Successful 12 | . 7 1 4 Failed 7 | . 5 . 2 Catastrophic . | . . . . Database Lockouts . | . . . . Manual . | . . . . Terminals 11 | . 6 . 5 Fabricators . | . . . . Repair Stations 6 | . 6 . . Recycling Units 2 | . . 1 1 Scanalyzers . | . . . . Garrison Access . | . . . . Terminal Hacks 7 | . 4 . 3 Open Door 1 | . . . 1 Alert Level 2 | . . . 2 Locate Traps 1 | . 1 . . Dispatch Records 1 | . 1 . . Recall Reinforcements 1 | . 1 . . Zone Layout 1 | . 1 . . Fabricator Hacks . | . . . . Repair Station Hacks 3 | . 3 . . Scan Component 2 | . 2 . . Repair 1 | . 1 . . Recycling Unit Hacks 2 | . . 1 1 Report Inventory 2 | . . 1 1 Scanalyzer . | . . . . Garrison Access Hacks . | . . . . Unauthorized Hacks . | . . . . Terminals . | . . . . Fabricators . | . . . . Repair Stations . | . . . . Recycling Units . | . . . . Scanalyzers . | . . . . Garrison Access . | . . . . Data Cores Recovered . | . . . . Used . | . . . . Hacking Detections 5 | . 2 1 2 Full Trace Events . | . . . . Feedback Events . | . . . . Feedback Blocked . | . . . . Robot Schematics Acquired . | . . . . Robots Built . | . . . . Authchips . | . . . . Time . | . . . . Total Robot Build Rating . | . . . . Part Schematics Acquired . | . . . . Parts Built . | . . . . Authchips . | . . . . Time . | . . . . Total Part Build Rating . | . . . . Parts Repaired 1 | . 1 . . Time 26 | . 26 . . Parts Recycled . | . . . . Recycled Matter . | . . . . Retrieved Matter . | . . . . Retrieved Components . | . . . . Parts Scanalyzed . | . . . . Part Schematics Acquired . | . . . . Parts Damaged . | . . . . Bothacking | -11 -10 -9 -9 ------------ Run | Yrd Mat Mat Sto Used RIF Installer . | . . . . Robots Hacked . | . . . . Non-combat . | . . . . Combat . | . . . . Robot Hacks Applied . | . . . . Relay Couplers Released . | . . . . Fabnet Peak Effective % . | . . . . Robots Rewired . | . . . . Allies Hacked . | . . . . Hacks Repelled . | . . . . Allies | -11 -10 -9 -9 -------- Run | Yrd Mat Mat Sto Total Allies . | . . . . Largest Group . | . . . . Highest-Rated Group . | . . . . Highest-Rated Ally . | . . . . Total Orders 9 | . . . 9 ROAM 1 | . . . 1 EXPLORE 8 | . . . 8 Ally Attacks . | . . . . Total Damage . | . . . . Kills . | . . . . Allies Corrupted . | . . . . Allies Melted . | . . . . Intel | -11 -10 -9 -9 ------- Run | Yrd Mat Mat Sto Robot Analysis Total . | . . . . Derelict Logs Recovered . | . . . . Drone Launches 10 | . . . 10 Drone Recoveries 6 | . . . 6 Exploration | -11 -10 -9 -9 ------------- Run | Yrd Mat Mat Sto Turns Passed 1444 | 141 482 139 682 Spaces Moved 819 | 78 331 98 312 Core 5 | 5 . . . Treads . | . . . . Legs 328 | 65 49 . 214 Wheels 390 | 8 282 98 2 Hover . | . . . . Flight 96 | . . . 96 Fastest Speed 50 | 50 80 110 106 Average Speed 112 | 111 108 110 118 Slowest Speed 190 | 120 190 110 190 Overloaded Moves . | . . . . Propulsion Burnouts . | . . . . Robots Hopped . | . . . . Cave-ins Triggered . | . . . . Exploration Rate (%) 31 | 5 59 10 52 Regions Visited 3 Branch Regions 1 Pre-discovered Areas . | . . . . Known Exits Taken . | . . . . Unknown Exits Taken 3 | 1 1 1 . Scrap Searched . | . . . . Spaces Dug 2 | . . . 2 Terrain Destroyed 2 | . . . 2 Melee 2 | . . . 2 Projectile . | . . . . AOE . | . . . . Terrain Rammed . | . . . . Walls Destroyed . | . . . . Machines Disabled . | . . . . Actions | -11 -10 -9 -9 --------- Run | Yrd Mat Mat Sto Total 1133 | 106 408 116 503 Wait 107 | . 18 8 81 Move 816 | 77 330 97 312 Hop . | . . . . Pick Up 37 | 9 14 2 12 Fast Attach . | . . . . Attach 19 | 6 8 1 4 Detach 3 | . 1 . 2 Swap 26 | 2 4 2 18 Drop 15 | . 4 . 11 Fire 35 | 12 13 3 7 Melee 75 | . 16 3 56 Ram . | . . . . Kick . | . . . . Crush . | . . . . Escape Stasis . | . . . . Rewire . | . . . . Trap . | . . . . Miscellaneous . | . . . . Route ------- -11/Scrapyard -10/Materials (discovered 2 exits: *Mat / [Min]) -9/Materials -9/Storage History --------- Turn | Location | Event 4 | -11/Scrapyard | Discovered new exit (range 16) 142 | -11/Scrapyard | Entered Materials 223 | -10/Materials | Discovered new exit (range 16) 261 | -10/Materials | Repaired Wheel 302 | -10/Materials | Build established: Mutant 549 | -10/Materials | Discovered new exit (range 16) 624 | -10/Materials | Entered another Materials area 624 | -9/Materials | Evolved 2 slots: Propulsion x1, Utility x1 654 | -9/Materials | Discovered new exit (range 11) 763 | -9/Materials | Entered Storage 1445 | -9/Storage | Self-destructed Last Messages --------------- 01427_ G-47 Trooper suffers critical hit (Smash). 01427_ Destroyed Aluminum Leg. 01427_ G-47 Trooper system corrupted by crushing effect. 01430_ Destroyed Aluminum Leg. 01430_ G-47 Trooper system corrupted by crushing effect. 01430_ G-47 Trooper knocked back. 01434_ K-01 Serf collects debris. 01434_ R-06 Scavenger collects Prototype Engine. 01436_ K-01 Serf collects debris. 01437_ R-06 Scavenger collects Imp. Flight Unit. 01441_ G-34 Mercenary suffers critical hit (Smash). 01441_ Destroyed Sml. Laser. 01441_ G-34 Mercenary system corrupted by crushing effect. 01441_ R-06 Scavenger collects Imp. Flight Unit. 01442_ Lgt. Armor Plating destroyed. Map ----- +----------------------------------------------------+ | ???????# #??????###+########## ##### | | ???????# """ | ######## # # | | ???????# """ | !+ + # + | | ???????# """ | =######## / # "" | | ???????# #??????# # # "] | | ???????###########??????# ## # "[ | | ????????????????????????#####+######### # "] | | ??????????????????????????? ??????# # " | | ????????????????????????? ????# # "" | | ??????????????????????? ??# + | | ??????????????????????#######+#######?# ##### | | ???????????????????????????????????####+### #???# | | ???????????????????????????????????# % ## #???# | | ???????????????????????????????????# ## #???# | | ???????????????????????????????????#!= ## ##??# | | ???????????????????????????????????#[""" # #### | | ???????????????????????????????????#%""" # | | ???????????????????????????????????#%"""%# | | ???????????????????????????????????#* %%[# ### | | ???????????????????????????????????########/#####+ | | ???????????????????#??????#####????###??## % | | ???????????????????#k###### ############* "" | | ???????????????????#k T %%%!+%= Y" | | ???????????????????# = # ##### ######%! [ | | ?????????????????### k%^ ##/###??# #????#![] | | ?????????????+ ^ = @r=Y ####+######[ ] | | ?????????????????###a######Y%! ## # ]] | | ??????????????????????????#] ## # | | ??????????????????????????# [ ## # | | ??????????????????????????# ! ## ######### | | ??????????????????????????# ## #???????? | | ??????????????????????????# ! ## #???????? | | ??????????????????????????# ## #???????? | | ??????????????????????????# ## #???????? | | ??????????????????????????####### #???????? | | ??????????????????????????# ####+############# | | ??????????????????????????# | | ??????????????????????????+ | | ??????????????????????????# | | ??????????????????????????# ####+############# | | ??????????????????????????#####??????????????????? | | ?????????????????????????????????????????????????? | | ?????????????????????????????????????????????????? | | ?????????????????????????????????????????????????? | | ?????????????????????????????????????????????????? | | ?????????????????????????????????????????????????? | | ?????????????????????????????????????????????????? | | ?????????????????????????????????????????????????? | | ?????????????????????????????????????????????????? | | ?????????????????????????????????????????????????? | +----------------------------------------------------+ Best States ------------- Heat Dissipation 28 Energy Generation 14 Energy Capacity 250 Matter Stores 300 Matter Capacity 300 Sight Range 16 Terrain Scan Density 10 ECM Strength 1 Armor Coverage 150 Evasion (%) 55 Authchip Count 3 Item Schematics ----------------- None Robot Schematics ------------------ None Fabricated ------------ Nothing Alien Tech Used ----------------- None Achievements -------------- None Challenges ------------ None Game ------ Seed ContainmentVisualCompressor Manual? 0 Play Time 00:33:04 Cumulative 8.9 hours Start 2024.04.16 @ 21:31:25 End 2024.04.16 @ 22:06:53 Sessions 1 Manual Loads 0 Difficulty Rogue Special Mode None Game No. 14 Rogue 14 Adventurer 0 Explorer 0 Win Type - Total 0 Types 0/0/0/0/0/0/0/0/0 Lore% 4 Gallery% 12 Achievement% 12 Wizard Run 0 Options --------- Layout 1 ASCII 0 Keyboard 0 Movement Numpad Keybinds 0 Fullscreen 1 Font 24/Smallcaps Map View 50x35 Zoom Use 0% Tactical HUD 1 Map Filters NONE Filters NONE Steam 1 RUN: a67ef340-9dde-4bfd-bc8b-7f52c480a536